Cogmind - Beta 16 @@@ ROGUE MODE // 2026.02.09 @ 18:29:32 Player: YBOUZL Result: Destroyed by G-47 Trooper with Particle Gun Performance ------------- Evolutions (2) 1000 Regions Visited (4) 800 Robots Destroyed (25) 125 Value Destroyed (1006) 1006 Prototype IDs (0) 0 Alien Tech Used (0) 0 Bonus (0) 0 TOTAL SCORE: 2931 Bonus ------- None Cogmind --------- Core Integrity 0/550 Matter 176/300 Energy 260/265 System Corruption 1% Temperature Cool (9) Movement Rolling (205) Ox9 Location -8/Materials Parts ------- > --- POWER (1) -------- Improved Ion Engine > --- PROPULSION (4) --- Carbon-fiber Leg VSS Leg Wheel > --- UTILITY (3) ------ Huge Storage Unit Graphene Brace > --- WEAPON (3) ------- Particle Cannon Assault Rifle > --- INVENTORY (25) --- Improved Ion Engine Large Storage Unit Huge Storage Unit Huge Storage Unit ECM Suite Particle Cannon Peak State ------------ > --- POWER ------------ Light Nuclear Core > --- PROPULSION ------- VSS Leg VSS Leg VSS Leg VSS Leg > --- UTILITY ---------- Improved Heat Sink Huge Storage Unit ECM Suite > --- WEAPON ----------- Ion Cannon Heavy Assault Rifle Improved Light Cannon > --- INVENTORY -------- Light Ion Engine Improved Ion Engine Improved Ion Engine Light Nuclear Core Carbon-fiber Leg Carbon-fiber Leg Large Storage Unit Huge Storage Unit Huge Storage Unit ECM Suite Graphene Brace Particle Cannon Particle Cannon Particle Cannon Assault Rifle [Rating: 30] Favorites ----------- Power Ion Engine Engine Ion Engine Power Core Light Nuclear Core Propulsion Wheel Leg VSS Leg Wheel Wheel Utility Huge Storage Unit Device ECM Suite Storage Huge Storage Unit Weapon Heavy Assault Rifle Energy Gun Medium Laser Energy Cannon Ion Cannon Ballistic Gun Heavy Assault Rifle Ballistic Cannon Improved Light Cannon Build | -11 -10 -10 -9 -8 ------- Run | Yrd Mat Min Mat Mat Slots Evolved 4 | . . . 2 2 Power . | . . . . . Propulsion 2 | . . . 1 1 Utility 1 | . . . . 1 Weapon 1 | . . . 1 . Parts Attached 42 | 7 4 2 3 26 Power 7 | 1 . 1 . 5 Engine 4 | 1 . 1 . 2 Core 3 | . . . . 3 Reactor . | . . . . . Propulsion 11 | 2 . . 1 8 Treads . | . . . . . Leg 7 | . . . . 7 Wheel 4 | 2 . . 1 1 Hover . | . . . . . Flight . | . . . . . Utility 7 | 1 2 . . 4 Device 5 | . 1 . . 4 Storage 2 | 1 1 . . . Processor . | . . . . . Hackware . | . . . . . Protection . | . . . . . Artifact . | . . . . . Weapon 17 | 3 2 1 2 9 Energy Gun 2 | 2 . . . . Energy Cannon 5 | . . . 1 4 Ballistic Gun 9 | 1 2 1 1 4 Ballistic Cannon 1 | . . . . 1 Launcher . | . . . . . Special Weapon . | . . . . . Impact Weapon . | . . . . . Slashing Weapon . | . . . . . Piercing Weapon . | . . . . . Special Melee Weapon . | . . . . . Unidentified Prototypes . | . . . . . Parts Lost 25 | . . . 1 24 Power 4 | . . . . 4 Propulsion 7 | . . . 1 6 Utility 3 | . . . . 3 Weapon 11 | . . . . 11 Highest Loss Streak 11 | . . . 1 11 To Critical Strikes . | . . . . . Average Backups 19 | 4 17 23 24 20 Power 3 | . 2 4 3 3 Propulsion 4 | 2 4 7 6 3 Utility 3 | . 2 4 4 4 Weapon 8 | 1 7 8 10 8 Tool/Special . | . . . . . Unused Backups 13 | . . . 5 8 Power 4 | . . . 1 3 Propulsion 5 | . . . 4 1 Utility 3 | . . . . 3 Weapon 1 | . . . . 1 Tool/Special . | . . . . . Average Slot Usage (%) 91 | . 98 98 98 79 Engine 8 | . 14 12 11 2 Core 2 | . . . . 6 Leg 5 | . . . . 15 Wheel 22 | . 28 28 32 10 Device 10 | . 8 14 11 12 Storage 12 | . 18 14 11 9 Energy Cannon 2 | . . . . 5 Ballistic Gun 24 | . 25 28 32 17 Peak Build Rating 30 | 6 12 11 16 30 Average Rating 15 | 4 10 10 15 20 On Entrance 8 | . 6 12 11 15 Avg Prop Armor Cover (%) 23 | . . . . 23 Naked Turns . | . . . . . Heaviest Build 103 | 12 94 93 96 103 Greatest Support 48 | 26 26 26 36 48 Greatest Overweight (x) 9 | . 3 3 4 9 Average Overweight (x) 2 | . 2 3 2 4 Largest Inventory Capacity 25 | 8 25 25 25 25 Average Capacity 24 | 7 24 25 25 25 Most Carried 25 | 7 25 25 25 25 Average Carried 19 | 4 17 23 24 19 Final Capacity 25 | 8 25 25 25 25 Final Carried 25 | 6 25 23 25 6 Class Distribution -------------------- 46% | Mutant 31% | Gunner 12% | Scientist-Gunner 9% | Skirmisher Dominant Class ---------------- Mutant | -10/Materials Mutant | -10/Mines Scientist-Gunner | -9/Materials Gunner | -8/Materials Resources | -11 -10 -10 -9 -8 ----------- Run | Yrd Mat Min Mat Mat Matter Collected 1008 | 232 190 20 . 566 Remotely . | . . . . . Salvage Created 1092 | . 246 . 88 758 Parts 65 | . 23 . 5 37 Haulers Intercepted 1 | . . . . 1 Recyclers Shooed 1 | . . . . 1 Parts Field Recycled . | . . . . . Retrieved Matter . | . . . . . Parts Self-Destructed . | . . . . . Prevented . | . . . . . Parts Restored . | . . . . . Kills | -11 -10 -10 -9 -8 ------- Run | Yrd Mat Min Mat Mat Combat Hostiles Destroyed 21 | . 5 . 2 14 Guns 16 | . 5 . 2 9 Cannons 5 | . . . . 5 Classes Destroyed 6 | . 3 . 1 2 Worker 1 | . 1 . . . Hauler 1 | . . . . 1 Watcher 2 | . 2 . . . Grunt 16 | . 5 . 1 10 Sentry 4 | . . . 1 3 Heavy 1 | . . . . 1 Best Kill Streak 5 | . 5 . 1 3 Combat Bots Only 5 | . 5 . 1 3 Max Kills in Single Turn 2 | . 2 . 1 1 Gunslinging . | . . . . . Exploded . | . . . . . Melee . | . . . . . Uniques/NPCs Destroyed . | . . . . . Combat | -11 -10 -10 -9 -8 -------- Run | Yrd Mat Min Mat Mat Hostile Shots Fired 261 | . 43 . 16 202 Missed 73 | . 16 . 5 52 Hits 188 | . 27 . 11 150 Projectile 188 | . 27 . 11 150 Critical Strikes 7 | . . . . 7 Damage Taken 3435 | . 327 . 140 2968 Core 698 | . 144 . . 554 Absorbed by Shields . | . . . . . Core Remaining (%) 80 | 100 . 42 100 . Volleys Fired 86 | . 17 . 5 64 Largest 3 | . 2 . 3 3 Hottest 188 | . 46 . 69 188 Shots Fired 226 | . 34 . 15 177 Gun 180 | . 34 . 15 131 Cannon 46 | . . . . 46 Launcher . | . . . . . Special . | . . . . . Kinetic 194 | . 34 . 15 145 Thermal 32 | . . . . 32 Explosive . | . . . . . Electromagnetic . | . . . . . Robot Hit Streak 9 | . 6 . 5 9 Robot Miss Streak 4 | . 4 . 2 4 Penetration Max . | . . . . . Secondary Targets . | . . . . . Shots Hit Robots 148 | . 22 . 8 118 Core Hits 49 | . 13 . 3 33 Critical Kills . | . . . . . Critical Parts Destroyed . | . . . . . Critical Strikes 1 | . . . . 1 Blast 1 | . . . . 1 Melee Attacks . | . . . . . Impact . | . . . . . Slashing . | . . . . . Piercing . | . . . . . Sneak Attacks . | . . . . . Combat Hostiles . | . . . . . Follow-up Attacks . | . . . . . Damage Inflicted 2604 | . 364 . 120 2120 Guns 1899 | . 364 . 120 1415 Cannons 666 | . . . . 666 Explosions . | . . . . . Melee . | . . . . . Ramming 39 | . . . . 39 Kinetic 2120 | . 364 . 120 1636 Thermal 445 | . . . . 445 Explosive . | . . . . . Electromagnetic . | . . . . . Impact . | . . . . . Slashing . | . . . . . Piercing . | . . . . . Highest Corruption 1 | . . . . 1 Average Corruption 1 | . . . . 1 Corruption Purged . | . . . . . Corruption Blocked . | . . . . . Overload Shots . | . . . . . Overflow Damage 36 | . . . . 36 Projectiles 22 | . . . . 22 Explosions . | . . . . . Melee 14 | . . . . 14 Knockbacks 3 | . . . . 3 Impact . | . . . . . Kinetic 2 | . . . . 2 Secondary 1 | . . . . 1 Self-Inflicted Damage 41 | . . . . 41 Shots 1 | . . . . 1 Rammed 1 | . . . . 1 Targets Rammed 1 | . . . . 1 Kicked . | . . . . . Crushed . | . . . . . Highest Temperature 401 | . 17 . 12 401 Average Temperature 76 | . 6 . 9 92 Received Heat Transfer 1521 | . 180 . 63 1278 Effects 1 | . . . . 1 Shutdowns 1 | . . . . 1 Siege Activations . | . . . . . Martial Activations . | . . . . . Shielding Activations . | . . . . . Robots Disrupted . | . . . . . Combat Hostiles . | . . . . . Robots Corrupted . | . . . . . Combat Hostiles . | . . . . . Parts Fried . | . . . . . Impact Corruptions 1 | . . . . 1 Robots Melted . | . . . . . Combat Hostiles . | . . . . . Parts Melted . | . . . . . Heat Transferred 740 | . . . . 740 Parts Sabotaged . | . . . . . Parts Stolen . | . . . . . Parts Stripped . | . . . . . Power Chain Reactions . | . . . . . Alert | -11 -10 -10 -9 -8 ------- Run | Yrd Mat Min Mat Mat Maximum Alert Level . | . . . . . Low Security (%) 100 | 100 100 100 100 100 Level 1 . | . . . . . Level 2 . | . . . . . Level 3 . | . . . . . Level 4 . | . . . . . Level 5 . | . . . . . High Security . | . . . . . Max Security . | . . . . . Peak Influence 153 | . 104 34 30 153 Initial 34 | . . 34 . 9 Average 29 | . 13 13 2 65 Influence Increases 669 | . 147 . 64 458 Destroy 0b10 Robot/C 420 | . 100 . 40 280 Destroy 0b10 Robot/NC 20 | . 15 . . 5 Destroy Leader 126 | . 24 . 20 82 Successful Hack 40 | . 8 . 4 28 Disable Machine 60 | . . . . 60 Destroy Structure 3 | . . . . 3 Influence Decreases 667 | . 59 88 42 478 Entered New Map 67 | . . 54 . 13 Time Decay 396 | . 59 34 32 271 Lost Part 204 | . . . 10 194 Squads Dispatched 6 | . 1 . 1 4 Investigation 3 | . 1 . . 2 Extermination . | . . . . . Reinforcement 3 | . . . 1 2 Assault . | . . . . . Garrison . | . . . . . Intercept . | . . . . . Searches Triggered . | . . . . . Construction Impeded 1 | . . . . 1 Haulers Reinforced . | . . . . . Active Scanning Responses . | . . . . . Cargo Convoy Interrupts . | . . . . . Stealth | -11 -10 -10 -9 -8 --------- Run | Yrd Mat Min Mat Mat Distress Signals 8 | . . . . 8 Communications Jammed . | . . . . . Distress Signals . | . . . . . Times Spotted 44 | . 10 . 9 25 Peak Tracking Total 7 | . 5 . 4 7 Tactical Retreats 5 | . . . 2 3 ECM-based Alert Blocks 11 | . . . 6 5 Traps | -11 -10 -10 -9 -8 ------- Run | Yrd Mat Min Mat Mat Traps Triggered 1 | . 1 . . . Indirectly . | . . . . . Trap Hack Attempts . | . . . . . Triggered . | . . . . . Disarmed . | . . . . . Reprogrammed . | . . . . . Reused . | . . . . . Traps Extracted . | . . . . . Installed . | . . . . . Triggered . | . . . . . Machines | -11 -10 -10 -9 -8 ---------- Run | Yrd Mat Min Mat Mat Machines Disabled 4 | . . . . 4 Max in Single Turn 2 | . . . . 2 Machines Repaired . | . . . . . Machines Dismantled . | . . . . . Machines Sabotaged . | . . . . . Overloaded Fab Kills . | . . . . . Hacking | -11 -10 -10 -9 -8 --------- Run | Yrd Mat Min Mat Mat Machines Accessed 9 | . 2 . 2 5 Terminals 7 | . 2 . 1 4 Fabricators . | . . . . . Repair Stations . | . . . . . Recycling Units 1 | . . . . 1 Scanalyzers 1 | . . . 1 . Garrison Access . | . . . . . Total Hacks 29 | . 6 . 10 13 Successful 19 | . 3 . 9 7 Failed 10 | . 3 . 1 6 Catastrophic 1 | . . . . 1 Database Lockouts . | . . . . . Manual . | . . . . . Terminals 18 | . 6 . 2 10 Fabricators . | . . . . . Repair Stations . | . . . . . Recycling Units 3 | . . . . 3 Scanalyzers 8 | . . . 8 . Garrison Access . | . . . . . Terminal Hacks 9 | . 3 . 1 5 Branch Access Points 1 | . 1 . . . Alert Level 1 | . . . 1 . Maintenance Status 1 | . 1 . . . Patrol Status 1 | . . . . 1 Transport Status 2 | . 1 . . 1 Investigation Status 1 | . . . . 1 Hauler Manifests 1 | . . . . 1 Registered Components 1 | . . . . 1 Fabricator Hacks . | . . . . . Repair Station Hacks . | . . . . . Recycling Unit Hacks 2 | . . . . 2 Process 1 | . . . . 1 Report Inventory 1 | . . . . 1 Scanalyzer 8 | . . . 8 . Insert Component 1 | . . . 1 . Analyze 3 | . . . 3 . Retrieve Study 4 | . . . 4 . Garrison Access Hacks . | . . . . . Unauthorized Hacks . | . . . . . Terminals . | . . . . . Fabricators . | . . . . . Repair Stations . | . . . . . Recycling Units . | . . . . . Scanalyzers . | . . . . . Garrison Access . | . . . . . Data Cores Recovered . | . . . . . Used . | . . . . . Hacking Detections 8 | . 2 . 2 4 Full Trace Events 2 | . . . . 2 Feedback Events 1 | . . . . 1 Corruption 1 | . . . . 1 Feedback Blocked . | . . . . . Robot Schematics Acquired . | . . . . . Robots Built . | . . . . . Authchips . | . . . . . Time . | . . . . . Total Robot Build Rating . | . . . . . Part Schematics Acquired 1 | . . . 1 . Parts Built . | . . . . . Authchips . | . . . . . Time . | . . . . . Total Part Build Rating . | . . . . . Part Studies Acquired 4 | . . . 4 . Parts Repaired . | . . . . . Time . | . . . . . Parts Recycled . | . . . . . Recycled Matter 11 | . . . . 11 Retrieved Matter . | . . . . . Retrieved Components . | . . . . . Parts Scanalyzed 1 | . . . 1 . Part Schematics Acquired 1 | . . . 1 . Parts Damaged . | . . . . . Bothacking | -11 -10 -10 -9 -8 ------------ Run | Yrd Mat Min Mat Mat Used RIF Installer . | . . . . . Robots Hacked . | . . . . . Non-combat . | . . . . . Combat . | . . . . . Robot Hacks Applied . | . . . . . Relay Couplers Released . | . . . . . Fabnet Peak Effective % . | . . . . . Robots Rewired . | . . . . . Allies Hacked . | . . . . . Hacks Repelled . | . . . . . Allies | -11 -10 -10 -9 -8 -------- Run | Yrd Mat Min Mat Mat Total Allies . | . . . . . Largest Group . | . . . . . Highest-Rated Group . | . . . . . Highest-Rated Ally . | . . . . . Total Orders . | . . . . . Ally Attacks . | . . . . . Total Damage . | . . . . . Kills . | . . . . . Allies Corrupted . | . . . . . Allies Melted . | . . . . . Intel | -11 -10 -10 -9 -8 ------- Run | Yrd Mat Min Mat Mat Active Infowar (turns) 1503 | . 336 110 449 608 Terrain 160 | . . . . 160 ECM 1503 | . 336 110 449 608 Robot Analysis Total . | . . . . . Derelict Logs Recovered . | . . . . . Drone Launches . | . . . . . Drone Recoveries . | . . . . . Exploration | -11 -10 -10 -9 -8 ------------- Run | Yrd Mat Min Mat Mat Turns Passed 1845 | 68 535 110 449 683 Spaces Moved 1007 | 49 348 78 261 271 Core 3 | 3 . . . . Treads . | . . . . . Legs 41 | . . . . 41 Wheels 963 | 46 348 78 261 230 Hover . | . . . . . Flight . | . . . . . Fastest Speed 50 | 50 90 135 106 130 Average Speed 130 | 86 131 135 112 154 Slowest Speed 270 | 90 135 135 130 270 Overloaded Moves . | . . . . . Propulsion Burnouts . | . . . . . Robots Hopped . | . . . . . Potential Cave-ins . | . . . . . Cave-ins Triggered . | . . . . . Exploration Rate (%) 22 | 4 44 18 23 25 Regions Visited 4 Branch Regions 1 Pre-discovered Areas . | . . . . . Known Exits Taken 1 | . 1 . . . Unknown Exits Taken 3 | 1 . 1 1 . Scrap Searched 1 | . . 1 . . Spaces Dug . | . . . . . Terrain Destroyed 2 | . . . . 2 Melee . | . . . . . Projectile 2 | . . . . 2 AOE . | . . . . . Terrain Rammed . | . . . . . Walls Destroyed . | . . . . . Machines Disabled . | . . . . . Actions | -11 -10 -10 -9 -8 --------- Run | Yrd Mat Min Mat Mat Total 1361 | 72 392 84 409 404 Wait 160 | 9 1 3 120 27 Move 1003 | 48 347 77 260 271 Hop . | . . . . . Pick Up 43 | 7 18 . 12 6 Fast Attach 11 | 5 2 . . 4 Attach 33 | 2 3 2 3 23 Detach 8 | 1 4 . 1 2 Swap 1 | . . . . 1 Drop 15 | . . 2 8 5 Fire 86 | . 17 . 5 64 Melee . | . . . . . Ram 1 | . . . . 1 Kick . | . . . . . Crush . | . . . . . Escape Stasis . | . . . . . Rewire . | . . . . . Trap . | . . . . . Miscellaneous . | . . . . . Route ------- -11/Scrapyard -10/Materials (discovered 4 exits: *Mat / *Min x2 / [*Sub]) -10/Mines -9/Materials -8/Materials History --------- Turn | Location | Event 19 | -11/Scrapyard | Discovered new exit (range 15) 69 | -11/Scrapyard | Entered Materials 85 | -10/Materials | Discovered new exit (range 16) 214 | -10/Materials | Discovered new exit (range 11) 308 | -10/Materials | Build established: Mutant 388 | -10/Materials | Identified exit to Mines 424 | -10/Materials | Discovered new exit (range 5) 589 | -10/Materials | Core integrity fell below 50% 604 | -10/Materials | Entered Mines 643 | -10/Mines | Discovered new exit (range 8) 714 | -10/Mines | Entered Materials 714 | -9/Materials | Evolved 2 slots: Propulsion x1, Weapon x1 1160 | -9/Materials | Discovered new exit (range 3) 1163 | -9/Materials | Entered another Materials area 1163 | -8/Materials | Evolved 2 slots: Propulsion x1, Utility x1 1555 | -8/Materials | Lost 4 parts (2n2w) 1615 | -8/Materials | Lost 3 parts (3w) 1628 | -8/Materials | Build established: Gunner 1676 | -8/Materials | Core integrity fell below 50% 1781 | -8/Materials | Core integrity fell below 20% 1821 | -8/Materials | Lost 11 parts (3p3n1u4w) 1846 | -8/Materials | Destroyed by G-47 Trooper with Particle Gun Last Messages --------------- 01774_ Imp. Light Cannon destroyed. 01774_ Critical hit (Burn: +37). 01776_ Imp. Heat Sink destroyed. 01777_ Acquired Wheel+. 01780_ K-01 Serf collects debris. 01783_ Particle Cannon destroyed. 01785_ K-01 Serf collects debris. 01790_ Lgt. Nuclear Core destroyed. 01795_ K-01 Serf destroyed. 01815_ W-25 Informer sends out distress signal. 01817_ U-05 Engineer builds a Door. 01829_ Connecting with Terminal... Feedback: System corruption (+1%). 01829_ ALERT: Suspicious activity at Terminal M003. Dispatching Investigation squad. 01836_ ECM Suite destroyed. 01837_ G-47 Trooper destroyed. 01838_ Carbon-fiber Leg destroyed. 01841_ Acquired 45 matter. [Achievement: I Laugh At Your Crits] Map ----- +----------------------------------------------------+ | ?????????????????????????????????????????????????? | | ?????????????????????????????????????????????????? | | ?????????????????????????????????????????????????? | | ?????????????????????????????????????????????????? | | ?????????????????????????????????????????????????? | | ?????????????????????????????????????????????????? | | ?????????????????????????????????????????????????? | | ?????????????????????????????????????????????????? | | ?????????????????????????????????????????????????? | | ?????????????????????????????????????????????????? | | ?????????????????????????????????????????????????? | | ?????????????????????????????????????????????????? | | ?????????????????????????????????????????????????? | | ?????????????????????????????????????????????????? | | ?????????????????????????????????????????????????? | | ??????????????????????????? ???????????????????? | | ??????????????????????????? #????????]?????????? | | ??????????????????????????? #??????????????????? | | ??????????????????????????? #??????????????????? | | ??????????????????????????# #??????????????????? | | ??????????????????????????# +??????????????????? | | ?????????????????????????? #??????????????????? | | ?????????????????????????? #??????????????????? | | ?????????????????????????? #??????????????????? | | ????????????????########### #?######???????????? | | ????????????????# g @# # #???????????? | | ????????????????# g""g# # ] ?????????????? | | ????????????????# "" # + ????????????????? | | ????????????????# """ T"g# #??????????????????? | | ????????????????# """ "" + #??????????????????? | | ????????????????# """ "" # #??????????????????? | | ????????????????# t # ########???????????? | | ????????????????#! =# # #???????????? | | ????????????????########### # "T" [#???????????? | | ??????????????????????????# + #???????????? | | ??????????????????????????# # #???????????? | | ??????????????????????????# ^^# #???????????? | | ??????????????????????????# ^^# #???????????? | | ??????????????????????????# ########???????????? | | ??????????????????????????# #??????????????????? | | ??????????????????????????# #??????????????????? | | ??????????????????????????#|!=#??????????????????? | | ??????????????????????????#%%!#??????????????????? | | ??????????????????#####???#!* #??????????????????? | | ??????????????????# #??# #??????????????????? | | ??????????????????# ?# #??????????????????? | | ??????????????????# # #??????????????????? | | ????????????????????# # #??????????????????? | | ??????!???????????????# #??????????????????? | | ??????????????????????### # #??????????????????? | +----------------------------------------------------+ Best States ------------- Heat Dissipation 45 Energy Generation 14 Energy Capacity 265 Matter Stores 300 Matter Capacity 300 Sight Range 16 Terrain Scan Range 16 Terrain Scan Density 10 ECM Strength 2 Evasion (%) 44 Item Schematics ----------------- Huge Storage Unit | -9/Materials | Scanalyzed Robot Schematics ------------------ None Fabricated ------------ Nothing Repaired ---------- Nothing Studied --------- Com. Wheel | -9/Materials | Hacked Wheel | -9/Materials | Hacked Hvy. Assault Rifle | -9/Materials | Hacked Ion Engine | -9/Materials | Hacked Alien Tech Used ----------------- None Achievements -------------- Hydra I Laugh At Your Crits Challenges ------------ None Game ------ Seed MiningIntegrityVibroblade Manual? 0 Play Time 00:24:22 Cumulative 23.1 hours Start 2026.02.09 @ 18:06:28 End 2026.02.09 @ 18:29:32 Sessions 1 Manual Loads 0 Difficulty Rogue Special Mode None Game No. 44 Rogue 44 Adventurer 0 Explorer 0 Win Type - Total 0 Types 0/0/0/0/0/0/0/0/0/0 Lore% 17 Gallery% 22 Achievement% 13 Wizard Run 0 Options --------- Layout 1 ASCII 0 Keyboard 1 Movement Arrows Keybinds 0 Fullscreen 1 Font 24/Smallcaps Map View 50x40 Zoom Use 0% Tactical HUD 1 Map Filters NONE Filters NONE Steam 1 RUN: edd5c7e5-906c-4819-b9ce-7d8bbc1a87e1